bitfinex/quotes_SOLUSD_20250307
["timestamp","ask_amount","ask_price","bid_price","bid_amount"]
[1741369713918,4.18227139,143.53,143.49,47.46740332]
[1741369714421,4.18227139,143.53,143.48,6.9695]
[1741369714623,4.18227139,143.53,143.5,47.46740332]
[1741369714818,4.18227139,143.53,143.52,47.46740332]
[1741369715828,6.9443,143.69,143.52,47.46740332]
[1741369716005,1.2868243,143.68,143.57,47.46740332]
[1741369716321,15.0256279,143.69,143.54,47.46740332]
[1741369716519,15.0256279,143.69,143.55,7.96]
[1741369716711,11.7108243,143.69,143.55,55.42740332]
[1741369717316,11.7108243,143.69,143.56,47.46740332]
[1741369717519,11.7108243,143.69,143.57,47.46740332]
[1741369717725,8.2311243,143.69,143.57,47.46740332]
[1741369718421,8.2311243,143.69,143.55,319.96]
[1741369718422,6.9443,143.69,143.58,54.43210332]
[1741369718627,6.9443,143.69,143.58,6.9647]
[1741369719107,6.9443,143.69,143.58,54.43210332]
[1741369720417,1.2868243,143.68,143.58,7.96]
[1741369720617,4.7669243,143.68,143.58,7.96]
[1741369721430,4.7669243,143.68,143.58,14.9247]
[1741369721726,4.7669243,143.68,143.58,7.96]
[1741369721930,4.7669243,143.68,143.56,7.96]
[1741369722509,4.7669243,143.68,143.56,14.9252]
[1741369722717,4.7669243,143.68,143.56,14.9255]
[1741369723724,13.4667243,143.68,143.56,7.96]
[1741369724027,4.7669243,143.68,143.56,14.9255]
[1741369724726,4.7669243,143.68,143.56,62.39290332]
[1741369725417,4.7669243,143.68,143.56,14.9255]
[1741369725828,4.7669243,143.68,143.56,62.39290332]
[1741369726030,4.7669243,143.68,143.56,79.80720332]
[1741369726825,4.7667243,143.68,143.57,47.46740332]
[1741369727127,4.7667243,143.68,143.56,79.80720332]
[1741369727423,4.7667243,143.68,143.56,32.3398]
[1741369727825,4.7667243,143.68,143.56,14.9255]
[1741369728219,4.7667243,143.68,143.57,47.46740332]
[1741369728418,1.2868243,143.68,143.57,47.46740332]
[1741369728628,4.7667243,143.68,143.58,6.9647]
[1741369729433,13.4665243,143.68,143.56,14.9254]
[1741369729811,13.4665243,143.68,143.56,7.96]
[1741369730412,13.4665243,143.68,143.56,14.9256]
[1741369730612,13.4665243,143.68,143.54,215.72410332]
[1741369730812,13.4665243,143.68,143.55,14.9262]
[1741369731012,13.4965243,143.68,143.55,14.9262]
[1741369731213,13.4965243,143.68,143.55,79.80910332]
[1741369731628,13.4965243,143.68,143.55,14.9262]
[1741369731933,13.4965243,143.68,143.56,47.46740332]
[1741369732125,4.7967243,143.68,143.56,47.46740332]
[1741369732739,4.7967243,143.68,143.57,71.84570332]
[1741369733437,4.7967243,143.68,143.57,54.43260332]
[1741369733738,4.7967243,143.68,143.57,6.9652]
[1741369734725,13.4965243,143.68,143.57,6.9652]
[1741369735438,13.4965243,143.68,143.56,350.82150049]
[1741369736441,13.4965243,143.68,143.55,7.96]
[1741369736442,13.4965243,143.68,143.55,46.78200049]
[1741369736643,13.4965243,143.68,143.62,31.85600049]
[1741369736644,0.03,143.68,143.62,31.85600049]
[1741369736819,3.5667,143.76,143.67,31.85600049]
[1741369737027,0.03,143.83,143.75,31.85600049]
[1741369737341,0.03,143.83,143.76,1.04291872]
[1741369737650,3.5064,143.83,143.73,150.8]
[1741369737951,3.5064,143.83,143.74,31.85600049]
[1741369738242,12.1972,143.83,143.74,31.85600049]
[1741369738746,12.1972,143.83,143.74,47.66800112]
[1741369739046,0.03,143.83,143.75,47.66800112]
[1741369739244,0.03,143.83,143.76,47.66800112]
[1741369739450,0.03,143.83,143.77,47.66800112]
[1741369740443,0.03,143.83,143.79,47.66800112]
[1741369740647,0.03,143.83,143.82,47.66800112]
[1741369740837,0.03,143.83,143.82,48.71040127]
[1741369741341,0.03,143.83,143.8,1.04240331]
[1741369741540,0.03,143.83,143.82,47.66800112]
[1741369742148,0.03,143.85,143.82,96.37826174]
[1741369742352,7.7991,143.99,143.84,95.33600224]
[1741369742645,7.7991,143.99,143.95,47.66800112]
[1741369742859,7.7991,143.99,143.92,47.66800112]
[1741369742860,0.03,144.0,143.94,55.60800112]
[1741369743241,0.03,144.0,143.94,7.94]
[1741369744253,0.03,144.0,143.88,55.60800112]
[1741369744544,0.03,144.0,143.79,7.2746]
[1741369744866,1.2868243,143.99,143.8,8.98235394]
[1741369745153,12.1544,143.98,143.86,47.66800112]
[1741369745328,12.1544,143.98,143.8,8.98235394]
[1741369745329,3.4725,143.99,143.92,47.66800112]
[1741369745531,3.4725,143.99,143.93,47.66800112]
[1741369745852,3.4725,143.99,143.87,8.98224718]
[1741369746232,3.4725,143.99,143.89,47.66800112]
[1741369746434,3.4725,143.99,143.9,47.66800112]
[1741369747156,1.2868243,143.98,143.86,17.6783565]
[1741369747353,3.7468,143.96,143.86,17.6783565]
[1741369747559,1.2868243,143.95,143.83,47.66800112]
[1741369747931,3.7468,143.96,143.84,47.66800112]
[1741369747932,5.0336243,143.96,143.84,47.66800112]
[1741369748146,5.0336243,143.96,143.83,47.66800112]
[1741369748651,5.0336243,143.96,143.84,47.66800112]
[1741369749259,29.524,143.95,143.81,7.94]
[1741369749435,1.2868243,143.94,143.81,7.94]
[1741369749638,1.2868243,143.94,143.79,198.32800112]
[1741369749639,7.94,143.93,143.79,198.32800112]
[1741369749840,1.2868243,143.92,143.79,198.32800112]
[1741369750245,1.2868243,143.92,143.79,47.66800112]
[1741369750859,9.2268243,143.93,143.82,47.66800112]
[1741369751035,3.4741,143.92,143.83,47.66800112]
[1741369751231,3.4741,143.92,143.85,47.66800112]
[1741369751438,12.1594,143.92,143.84,7.94]
[1741369751636,1.2868243,143.91,143.84,7.94]
[1741369751855,1.2868243,143.91,143.75,1.04236985]
[1741369752157,1.2868243,143.91,143.76,55.60800112]
[1741369752460,7.8643,143.9,143.76,7.94]
[1741369752655,3.745,143.88,143.76,7.94]
[1741369752957,3.745,143.88,143.78,47.66800112]
[1741369753143,3.745,143.88,143.79,47.66800112]
[1741369753337,3.4753,143.87,143.8,47.66800112]
[1741369753765,12.1636,143.87,143.78,47.66800112]
[1741369753963,1.2868243,143.86,143.76,7.94]
[1741369754268,1.2868243,143.86,143.74,7.94]
[1741369754442,9.2268243,143.86,143.74,7.94]
[1741369755062,1.2868243,143.86,143.71,7.94]
[1741369755259,7.7142,143.83,143.7,150.58]
[1741369755464,7.7142,143.83,143.68,47.66800112]
[1741369755465,1.2868243,143.82,143.68,47.66800112]
[1741369755659,1.2868243,143.82,143.7,47.66800112]
[1741369756045,3.8007,143.81,143.58,1.04345229]
[1741369756244,3.8007,143.81,143.64,47.66800112]
[1741369756245,1.2868243,143.8,143.64,47.66800112]
[1741369756450,7.94,143.79,143.65,47.66800112]
[1741369756767,7.94,143.79,143.69,47.66800112]
[1741369757147,1.2868243,143.78,143.64,55.60800112]
[1741369757353,29.5609,143.77,143.64,7.94]
[1741369757548,29.5609,143.77,143.65,47.66800112]
[1741369757859,12.1721,143.77,143.69,47.66800112]
[1741369758054,12.1721,143.77,143.67,47.66800112]
[1741369758261,1.2868243,143.76,143.64,7.94]
[1741369758766,29.5609,143.77,143.66,47.66800112]
[1741369759180,26.0832,143.77,143.65,47.66800112]
[1741369759357,26.0832,143.77,143.64,47.66800112]
[1741369759358,27.3700243,143.77,143.64,47.66800112]
[1741369759669,27.3700243,143.77,143.64,55.60800112]
[1741369760266,27.3700243,143.77,143.65,47.66800112]
[1741369760467,26.0832,143.77,143.66,47.66800112]
[1741369760843,1.2868243,143.76,143.64,7.94]
[1741369761263,36.9292,143.75,143.61,198.22800112]
[1741369761449,1.2868243,143.74,143.62,7.94]
[1741369761648,7.94,143.73,143.62,7.94]
[1741369761967,7.94,143.73,143.62,55.60800112]
[1741369762153,7.94,143.73,143.62,7.94]
[1741369762354,1.2868243,143.72,143.62,7.94]
[1741369763470,24.03234075,143.71,143.62,7.94]
[1741369763650,1.2868243,143.7,143.57,7.94]
[1741369764042,7.3611,143.69,143.57,7.94]
[1741369764247,1.2868243,143.68,143.57,7.94]
[1741369765356,46.9823,143.67,143.57,7.94]
[1741369766283,1.2868243,143.66,143.57,7.94]
[1741369766777,46.9823,143.67,143.57,7.94]
[1741369766974,46.9823,143.67,143.58,47.66800112]
[1741369767374,43.5022,143.67,143.57,7.94]
[1741369767887,43.5022,143.67,143.58,47.66800112]
[1741369768381,43.5022,143.67,143.57,55.60800112]
[1741369768591,43.5022,143.67,143.57,7.94]
[1741369769474,46.9823,143.67,143.57,7.94]
[1741369770359,54.9223,143.67,143.57,7.94]
[1741369770662,1.2868243,143.66,143.53,158.593]
[1741369770970,1.2868243,143.66,143.58,0.033]
[1741369771368,1.2868243,143.66,143.53,0.033]
[1741369771574,58.8097,143.65,143.53,0.033]
[1741369771772,58.8097,143.65,143.53,48.74577365]
[1741369772084,50.8697,143.65,143.55,47.66800112]
[1741369772297,50.8697,143.65,143.53,47.70100112]
[1741369772760,50.8697,143.65,143.55,47.66800112]
[1741369772958,16.0629,143.65,143.57,47.66800112]
[1741369773159,33.4663,143.65,143.55,7.94]
[1741369773661,16.0629,143.65,143.56,47.66800112]
[1741369773884,16.0629,143.65,143.55,8.984407]
[1741369773885,16.0629,143.65,143.55,7.94]
[1741369774266,33.4663,143.65,143.55,7.94]
[1741369774585,33.4663,143.65,143.53,7.973]
[1741369774792,33.4663,143.65,143.53,56.68549349]
[1741369775176,50.8697,143.65,143.53,63.65249349]
[1741369775383,16.0629,143.65,143.57,47.66800112]
[1741369775700,16.0629,143.65,143.57,48.71216721]
[1741369775862,16.0629,143.65,143.58,47.66800112]
[1741369776058,16.0629,143.65,143.57,48.71216721]
[1741369776281,33.4663,143.65,143.55,47.66800112]
[1741369776484,33.4663,143.65,143.54,1.04418802]
[1741369776683,16.0629,143.65,143.56,47.66800112]
[1741369776885,16.0629,143.65,143.58,47.66800112]
[1741369777082,3.4806,143.65,143.59,7.94]
[1741369777287,3.4806,143.65,143.59,56.65210773]
[1741369777481,36.9395,143.69,143.59,63.61600773]
[1741369777793,1.2868243,143.68,143.59,7.94]
[1741369778173,7.94,143.67,143.54,1.04436348]
[1741369778376,7.94,143.67,143.53,56.68541614]
[1741369778581,1.2868243,143.66,143.53,0.033]
[1741369779174,7.3255,143.65,143.53,0.033]
[1741369779482,29.5898,143.63,143.53,0.033]
[1741369780779,46.9956,143.63,143.53,0.033]
[1741369783380,29.5898,143.63,143.54,47.66800112]
[1741369783581,29.5898,143.63,143.54,55.60800112]
[1741369783780,26.1087,143.63,143.54,55.60800112]
[1741369784293,3.4809,143.64,143.58,47.66800112]
[1741369784471,3.4809,143.64,143.59,1.04406803]
[1741369784676,3.4809,143.64,143.6,39.78015025]
[1741369785182,3.4809,143.64,143.6,7.94]
[1741369786015,0.03,143.66,143.6,7.94]
[1741369787496,0.03,143.66,143.55,56.76145541]
[1741369787800,0.03,143.66,143.57,47.77710701]
[1741369788000,0.03,143.66,143.57,48.82135686]
[1741369788303,0.03,143.66,143.56,47.77710701]
[1741369789183,0.03,143.66,143.57,1.04430515]
[1741369789396,0.03,143.66,143.57,48.82141216]
[1741369789784,0.03,143.66,143.58,47.77710701]
[1741369790083,0.03,143.66,143.57,48.82141216]
[1741369790395,0.03,143.66,143.58,47.77710701]
[1741369790997,0.03,143.66,143.57,47.77710701]
[1741369791303,0.03,143.66,143.56,1.04416322]
[1741369791304,0.03,143.66,143.58,47.77710701]
[1741369791497,0.03,143.66,143.57,47.77710701]
[1741369792083,0.03,143.66,143.6,47.77710701]
[1741369792394,0.03,143.66,143.62,47.77710701]
[1741369792580,0.03,143.66,143.61,7.94]
[1741369793679,0.03,143.66,143.59,7.94]
[1741369794080,0.03,143.66,143.59,55.71710701]
[1741369794283,0.03,143.66,143.6,48.82116956]
[1741369794488,0.03,143.66,143.61,47.77710701]
[1741369794696,0.03,143.66,143.62,48.8210435]
[1741369795093,0.03,143.66,143.6,1.04386431]
[1741369795904,0.03,143.66,143.59,63.72489351]
[1741369796105,0.03,143.66,143.59,1.0439865]
[1741369796301,0.03,143.66,143.59,54.74130701]
[1741369796614,0.03,143.66,143.63,47.77710701]
[1741369796784,0.03,143.66,143.64,1.04371418]
[1741369797405,0.03,143.66,143.64,56.76082119]
[1741369798009,0.03,143.66,143.65,47.77710701]
[1741369798514,0.03,143.66,143.65,54.73840701]
[1741369800091,0.03,143.66,143.65,6.9613]
[1741369800384,0.03,143.66,143.64,56.76082119]
[1741369800385,0.03,143.66,143.63,7.94]
[1741369800610,0.03,143.66,143.63,56.7608449]
[1741369800817,0.03,143.66,143.64,47.77710701]
[1741369801002,0.03,143.66,143.65,48.82068664]
[1741369801488,3.4772,143.79,143.71,47.77710701]
[1741369801683,3.4772,143.79,143.64,47.77710701]
[1741369801684,12.1704,143.79,143.72,7.94]
[1741369801998,11.0746,143.77,143.6,6.9637]
[1741369802191,1.2868243,143.76,143.61,48.82091346]
[1741369802395,20.1138,143.75,143.59,1.04381415]
[1741369802603,7.3687,143.73,143.59,1.04381415]
[1741369802805,4.8373243,143.72,143.58,0.033]
[1741369803083,7.6954,143.71,143.58,0.033]
[1741369803307,3.5505,143.69,143.58,0.033]
[1741369803495,16.9222243,143.68,143.58,0.033]
[1741369803712,7.6954,143.68,143.58,0.033]
[1741369803895,7.94,143.67,143.58,0.033]
[1741369804099,9.2268243,143.67,143.58,0.033]
[1741369804318,12.1814,143.66,143.58,0.033]
[1741369804690,3.4804,143.66,143.58,0.033]
[1741369805090,7.6954,143.68,143.58,0.033]
[1741369805388,7.6954,143.68,143.62,47.77710701]
[1741369805596,10.3396273,143.71,143.64,47.77710701]
[1741369805792,10.3396273,143.71,143.65,48.82074188]
[1741369806110,10.3396273,143.71,143.65,1.04363487]
[1741369806285,7.8543,143.74,143.62,8.98368904]
[1741369806482,7.8543,143.74,143.64,47.77710701]
[1741369806686,7.8543,143.74,143.64,48.82074148]
[1741369806906,7.8543,143.74,143.64,1.04363447]
[1741369807085,7.8543,143.74,143.65,47.77710701]
[1741369807286,7.8543,143.74,143.63,1.04363191]
[1741369807490,11.3328,143.74,143.62,7.94]
[1741369807720,7.8543,143.74,143.63,47.77710701]
[1741369807885,7.8543,143.74,143.63,48.82084516]
[1741369807886,11.3328,143.74,143.63,48.82084516]
[1741369808081,7.8543,143.74,143.63,48.82084516]
[1741369808352,7.8543,143.74,143.64,47.77710701]
[1741369808481,7.8543,143.74,143.66,6.9608]
[1741369808682,11.3328,143.74,143.62,7.94]
[1741369808890,0.03,143.66,143.62,7.94]
[1741369809116,0.03,143.66,143.63,32.856204]
[1741369809502,0.03,143.66,143.64,31.81236873]
[1741369810217,0.03,143.66,143.65,1.04368317]
[1741369810387,3.67,143.77,143.66,24.3629]
[1741369810587,3.67,143.77,143.71,31.81236873]
[1741369810791,7.1479,143.77,143.7,7.94]
[1741369810992,7.1479,143.77,143.66,46.71316873]
[1741369811608,7.1479,143.77,143.66,39.75236873]
[1741369811916,17.1291243,143.77,143.66,7.94]
[1741369812138,7.4441,143.75,143.58,0.033]
[1741369812443,3.6165,143.72,143.58,0.033]
[1741369812745,46.2442243,143.71,143.58,0.033]
[1741369813219,11.4428,143.7,143.58,0.033]
[1741369813428,1.2868243,143.69,143.58,0.033]
[1741369814539,12.1797,143.68,143.58,0.033]
[1741369814844,3.4799,143.68,143.58,0.033]
[1741369815036,3.4799,143.68,143.6,47.79733663]
[1741369815351,11.4428,143.7,143.62,47.79733663]
[1741369815352,14.9223,143.7,143.62,47.79733663]
[1741369815869,11.4428,143.7,143.63,47.79733663]
[1741369816016,3.5357,143.75,143.67,47.79733663]
[1741369816222,3.4786,143.74,143.66,47.79733663]
[1741369816418,12.1748,143.74,143.62,7.94]
[1741369816728,12.1748,143.74,143.58,1.07667984]
[1741369816729,1.2868243,143.73,143.61,47.79733663]
[1741369816910,1.2868243,143.73,143.6,47.79733663]
[1741369817111,1.2868243,143.73,143.61,47.79733663]
[1741369817313,12.1748,143.74,143.64,47.79733663]
[1741369817542,12.1748,143.74,143.65,47.79733663]
[1741369817747,12.1748,143.74,143.64,47.79733663]
[1741369817946,30.8541243,143.74,143.62,47.79733663]
[1741369819047,12.1748,143.74,143.63,47.79733663]
[1741369819347,3.7247,143.71,143.58,0.033]
[1741369819515,7.6041,143.69,143.58,0.033]
[1741369819734,11.5267,143.67,143.58,0.033]
[1741369819928,1.2868243,143.66,143.58,0.033]
[1741369820144,12.8135243,143.67,143.58,0.033]
[1741369820758,12.1814,143.66,143.58,0.033]
[1741369821056,3.4804,143.66,143.6,47.79733663]
[1741369821257,15.0069,143.67,143.61,47.79733663]
[1741369821443,15.0069,143.67,143.58,0.033]
[1741369821642,1.2868243,143.66,143.58,0.033]
[1741369822657,29.5857,143.65,143.58,0.033]
[1741369822956,9.2268243,143.64,143.58,0.033]
[1741369823259,7.94,143.64,143.58,0.033]
[1741369824950,12.184,143.63,143.58,0.033]
[1741369826335,3.4804,143.66,143.6,47.79733663]
[1741369826660,12.1814,143.66,143.58,47.83033663]
[1741369826967,12.1814,143.66,143.58,0.033]
[1741369827183,7.94,143.65,143.58,0.033]
[1741369828755,3.4809,143.64,143.58,0.033]
[1741369829049,3.4804,143.66,143.58,47.83033663]
[1741369829244,12.1814,143.66,143.58,0.033]
[1741369829553,12.1814,143.66,143.58,47.83033663]
[1741369829770,0.03,143.67,143.62,47.79733663]
[1741369830076,0.03,143.67,143.65,47.79733663]
[1741369830279,0.03,143.67,143.66,47.79733663]
[1741369830786,0.03,143.67,143.64,47.79733663]
[1741369831157,0.03,143.67,143.6,1.04373263]
[1741369831483,0.03,143.67,143.62,47.79733663]
[1741369831662,0.03,143.67,143.63,47.79733663]
[1741369831863,0.03,143.67,143.6,1.04385176]
[1741369832056,0.03,143.67,143.63,47.79733663]
[1741369832750,0.03,143.67,143.62,6.9627]
[1741369832751,0.03,143.67,143.61,47.79733663]
[1741369833075,0.03,143.67,143.63,47.79733663]
[1741369833261,0.03,143.67,143.62,47.79733663]
[1741369833572,0.03,143.67,143.6,6.9633]
[1741369833573,0.03,143.67,143.65,47.79733663]
[1741369833788,0.03,143.67,143.66,56.78103313]
[1741369834084,10.6685,143.76,143.66,56.78103313]
[1741369834250,10.6685,143.76,143.7,47.79733663]
[1741369834572,10.6685,143.76,143.66,15.9443965]
[1741369834785,10.6685,143.76,143.68,47.79733663]
[1741369834960,11.1792,143.8,143.71,47.79733663]
[1741369835166,14.6562,143.8,143.73,47.79733663]
[1741369835353,0.03,143.81,143.75,47.79733663]
[1741369835552,3.5068,143.81,143.74,1.04307619]
[1741369835767,3.5068,143.81,143.72,55.73733663]
[1741369835958,12.1988,143.81,143.68,1.04297201]
[1741369836153,3.5068,143.81,143.72,47.79733663]
[1741369836359,0.03,143.81,143.78,47.79733663]
[1741369836550,0.03,143.81,143.8,47.79733663]
[1741369838881,0.03,143.81,143.78,1.04260083]
[1741369839069,0.03,143.81,143.78,47.79733663]
[1741369839268,0.03,143.81,143.77,8.98260083]
[1741369839483,0.03,143.81,143.77,47.79733663]
[1741369839655,0.03,143.81,143.73,47.79733663]
[1741369839981,0.03,143.81,143.74,7.92]
[1741369841069,11.1144,143.8,143.72,1.04316452]
[1741369841271,11.1144,143.8,143.73,47.79733663]
[1741369841480,0.03,143.81,143.77,47.79733663]
[1741369841653,0.03,143.81,143.75,55.71733663]
[1741369841976,0.03,143.81,143.73,7.92]
[1741369842905,0.03,143.81,143.73,55.71733663]
[1741369843105,0.03,143.81,143.73,56.76038646]
[1741369843261,0.03,143.81,143.73,7.92]
[1741369843466,0.03,143.81,143.73,56.76036673]
[1741369843790,0.03,143.81,143.73,55.71733663]
[1741369843996,0.03,143.81,143.73,7.92]
[1741369844283,7.92,143.8,143.66,47.79733663]
[1741369844502,3.6607,143.77,143.64,7.92]
[1741369844706,4.9475243,143.77,143.63,0.033]
[1741369844999,4.9475243,143.77,143.63,47.83033663]
[1741369845685,4.9475243,143.77,143.63,0.033]
[1741369846276,4.9475243,143.77,143.64,47.79733663]
[1741369846491,4.9475243,143.77,143.63,47.83033663]
[1741369846677,29.563,143.76,143.63,47.83033663]
[1741369846865,1.2868243,143.75,143.63,0.033]
[1741369847061,29.563,143.76,143.64,48.84115716]
[1741369847286,30.8498243,143.76,143.64,47.79733663]
[1741369847469,29.563,143.76,143.64,47.79733663]
[1741369847671,29.563,143.76,143.63,48.87408415]
[1741369847879,1.2868243,143.75,143.63,0.033]
[1741369848087,7.92,143.74,143.63,47.83033663]
[1741369848669,12.1755,143.73,143.63,47.83033663]
[1741369849387,12.1755,143.73,143.63,0.033]
[1741369850104,12.1755,143.73,143.64,48.84111655]
[1741369850398,12.1755,143.73,143.65,47.79733663]
[1741369850888,3.4787,143.73,143.66,1.04365124]
[1741369851088,3.4787,143.73,143.67,47.79733663]
[1741369851290,3.6607,143.77,143.71,47.79733663]
[1741369851492,3.6607,143.77,143.72,47.79733663]
[1741369851708,7.5346,143.79,143.72,1.0431971]
[1741369851876,11.0119,143.79,143.73,47.79733663]
[1741369852198,19.7051,143.79,143.71,47.79733663]
[1741369852412,11.0119,143.79,143.72,1.04325273]
[1741369852594,7.5346,143.79,143.72,1.04325273]
[1741369852900,7.5346,143.79,143.74,47.79733663]
[1741369853105,3.5068,143.81,143.75,47.79733663]
[1741369853602,3.5068,143.81,143.74,56.76026765]
[1741369853792,3.5068,143.81,143.75,47.79733663]
[1741369854301,0.03,143.81,143.79,47.79733663]
[1741369854606,0.03,143.81,143.8,47.79733663]
[1741369854991,0.03,143.81,143.8,62.67143663]
[1741369855205,0.03,143.81,143.8,63.71383088]
[1741369855578,0.03,143.81,143.8,56.75973088]
[1741369855782,0.0001,143.81,143.8,63.71383088]
[1741369855996,0.03,143.88,143.8,149.85636751]
[1741369856310,0.03,143.88,143.87,47.79733663]
[1741369856479,0.03,143.88,143.87,56.75930394]
[1741369856806,0.03,143.88,143.87,7.92]
[1741369857106,0.03,143.88,143.84,7.92]
[1741369857405,0.03,143.88,143.84,56.75965767]
[1741369857785,0.03,143.88,143.84,8.96232104]
[1741369857993,0.03,143.88,143.84,7.92]
[1741369858306,0.03,143.88,143.8,56.7597697]
[1741369858601,0.03,143.88,143.82,47.79733663]
[1741369858783,0.03,143.88,143.83,47.79733663]
[1741369858977,0.03,143.88,143.84,48.83959155]
[1741369859183,0.03,143.88,143.86,47.79733663]
[1741369859410,0.03,143.88,143.87,48.83946828]
[1741369859709,0.03,143.88,143.84,47.79733663]
[1741369859901,0.03,143.88,143.86,47.79733663]
[1741369860508,0.03,143.88,143.81,1.04199497]
[1741369860695,0.03,143.88,143.84,47.79733663]
[1741369861000,0.03,143.88,143.82,47.79733663]
[1741369861200,0.03,143.88,143.83,48.83974275]
[1741369861413,0.03,143.88,143.84,47.79733663]
[1741369861611,0.03,143.88,143.85,1.04225793]
[1741369861901,0.03,143.88,143.81,6.9533]
[1741369861902,0.03,143.88,143.82,47.79733663]
[1741369862107,0.03,143.88,143.8,55.71733663]
[1741369862314,0.03,143.88,143.8,56.75992163]
[1741369862608,0.03,143.88,143.83,31.74197178]
[1741369862905,0.03,143.88,143.84,32.78423387]
[1741369863280,0.03,143.88,143.84,1.04226209]
[1741369863483,0.03,143.88,143.78,7.92]
[1741369863785,0.03,143.88,143.81,31.74197178]
[1741369863980,0.03,143.88,143.83,31.74197178]
[1741369864180,0.03,143.88,143.84,31.74197178]
[1741369864394,0.03,143.88,143.85,31.74197178]
[1741369864806,0.03,143.88,143.86,1.04228461]
[1741369864980,0.03,143.88,143.87,1.04226924]
[1741369865300,0.03,143.88,143.87,39.73494102]
[1741369865499,0.03,143.9,143.87,39.73494102]
[1741369865690,0.03,143.9,143.89,63.48394356]
[1741369866026,0.03,143.92,143.89,85.48552837]
[1741369866201,0.03,144.03,143.89,85.48552837]
[1741369866202,3.81849502,144.06,143.9,71.40394356]
[1741369866387,3.471,144.05,143.91,1.04133612]
[1741369866585,3.471,144.05,143.93,47.5428916]
[1741369866795,4.7578243,144.05,143.92,47.5428916]
[1741369866987,13.4353243,144.05,143.91,7.92]
[1741369867196,30.7903243,144.05,143.91,7.92]
[1741369867515,3.7729,144.04,143.87,7.92]
[1741369867808,1.2868243,144.03,143.84,1.04226925]
[1741369868016,1.2868243,144.03,143.87,47.5428916]
[1741369868225,1.2868243,144.03,143.88,47.5428916]
[1741369868509,1.2868243,144.03,143.89,47.5428916]
[1741369868702,1.2868243,144.03,143.88,47.5428916]
[1741369869015,1.2868243,144.03,143.89,47.5428916]
[1741369869192,1.2868243,144.03,143.9,47.5428916]
[1741369869392,29.5117,144.01,143.89,47.5428916]
[1741369869609,9.2068243,144.0,143.84,1.04194246]
[1741369869809,9.2068243,144.0,143.87,47.5428916]
[1741369870207,7.92,144.0,143.88,47.5428916]
[1741369870591,7.92,144.0,143.91,47.5428916]
[1741369871011,7.92,144.0,143.9,47.5428916]
[1741369871412,7.92,144.0,143.86,1.04186603]
[1741369871596,12.1535,143.99,143.9,47.5428916]
[1741369871792,12.1535,143.99,143.89,47.5428916]
[1741369872097,29.5158,143.99,143.87,47.5428916]
[1741369872312,1.2868243,143.98,143.78,54.9092916]
[1741369872529,1.2868243,143.98,143.82,47.5428916]
[1741369872690,1.2868243,143.98,143.85,47.5428916]
[1741369873021,1.2868243,143.98,143.83,48.58507738]
[1741369873193,1.2868243,143.98,143.84,47.5428916]
[1741369873394,11.7968,143.97,143.85,47.5428916]
[1741369873603,12.156,143.96,143.86,47.5428916]
[1741369873793,20.056,143.96,143.86,47.5428916]
[1741369873999,20.056,143.96,143.88,47.5428916]
[1741369874197,37.4219,143.96,143.86,47.5428916]
[1741369874401,7.7542,143.95,143.8,1.0422308]
[1741369874709,1.2868243,143.94,143.79,47.5428916]
[1741369875026,1.2868243,143.94,143.8,47.5428916]
[1741369875229,1.2868243,143.94,143.79,1.04261917]
[1741369875230,7.9,143.93,143.83,47.5428916]
[1741369875720,12.1594,143.92,143.83,47.5428916]
[1741369876012,12.1594,143.92,143.81,47.5428916]
[1741369876013,29.5301,143.92,143.81,47.5428916]
[1741369876217,29.5301,143.92,143.8,47.5428916]
[1741369876417,12.1594,143.92,143.82,47.5428916]
[1741369876598,20.0594,143.92,143.81,47.5428916]
[1741369876998,37.4301,143.92,143.81,47.5428916]
[1741369877407,37.4301,143.92,143.8,47.5428916]